[Event "*** Titled Tuesday Blitz"]
[Site "Chess.com"]
[Date "2020.05.19"]
[Round "10"]
[White "Stronger1799"]
[Black "NormWeinstein"]
[Result "1-0"]
[WhiteElo "2361"]
[BlackElo "2443"]
[TimeControl "180+1"]
[EndTime "13:57:10 PDT"]
[Termination "Stronger1799 won by checkmate"]

1. e4 {[%clk 0:02:43.1]} 1... c5 {[%clk 0:02:59.6]} 2. Nf3 {[%clk 0:02:42.8]}
2... d6 {[%clk 0:03:00.1]} 3. d4 {[%clk 0:02:43.2]} 3... Nf6 {[%clk 0:03:00.5]}
4. Nc3 {[%clk 0:02:41.9]} 4... cxd4 {[%clk 0:03:01]} 5. Nxd4 {[%clk 0:02:42.6]}
5... Nc6 {[%clk 0:03:01.4]} 6. f3 {[%clk 0:02:42]} 6... e6 {[%clk 0:03:01.2]} 7.
Be3 {[%clk 0:02:41.4]} 7... d5 {[%clk 0:03:01.3]} 8. Bb5 {[%clk 0:02:34.4]} 8...
Bd7 {[%clk 0:03:00.5]} 9. exd5 {[%clk 0:02:33.5]} 9... exd5 {[%clk 0:03:00]} 10.
Qd2 {[%clk 0:02:30.3]} 10... Bb4 {[%clk 0:02:59]} 11. O-O-O {[%clk 0:02:27.5]}
11... O-O {[%clk 0:02:58.5]} 12. a3 {[%clk 0:02:01.2]} 12... Ba5 {[%clk
0:02:57.6]} 13. Nb3 {[%clk 0:02:00.9]} 13... Bb6 {[%clk 0:02:57.6]} 14. Bg5
{[%clk 0:02:00.4]} 14... d4 {[%clk 0:02:49.8]} 15. Nd5 {[%clk 0:01:52.2]} 15...
Bf5 {[%clk 0:02:23]} 16. Bc4 {[%clk 0:01:30.5]} 16... Ne5 {[%clk 0:02:05.7]} 17.
Bxf6 {[%clk 0:01:15.2]} 17... gxf6 {[%clk 0:02:03.6]} 18. Qf4 {[%clk 0:01:05.2]}
18... Bg6 {[%clk 0:01:10.8]} 19. Nxf6+ {[%clk 0:00:55.3]} 19... Kg7 {[%clk
0:01:11]} 20. Nh5+ {[%clk 0:00:51.5]} 20... Bxh5 {[%clk 0:01:08.1]} 21. Qxe5+
{[%clk 0:00:50.4]} 21... Kh6 {[%clk 0:01:01.1]} 22. h4 {[%clk 0:00:25]} 22... f6
{[%clk 0:00:53.4]} 23. Qf4+ {[%clk 0:00:18.6]} 23... Kg7 {[%clk 0:00:53.1]} 24.
Nxd4 {[%clk 0:00:19.2]} 24... Bxd4 {[%clk 0:00:37.1]} 25. Rxd4 {[%clk
0:00:20.1]} 25... Qe7 {[%clk 0:00:27.6]} 26. Re4 {[%clk 0:00:14.3]} 26... Qc5
{[%clk 0:00:21.9]} 27. Rhe1 {[%clk 0:00:11.9]} 27... Kh8 {[%clk 0:00:19.6]} 28.
g4 {[%clk 0:00:07.6]} 28... Bg6 {[%clk 0:00:19.6]} 29. Re7 {[%clk 0:00:05.8]}
29... Rac8 {[%clk 0:00:17.8]} 30. h5 {[%clk 0:00:01.7]} 30... Qxc4 {[%clk
0:00:15.7]} 31. Qxc4 {[%clk 0:00:02.6]} 31... Rxc4 {[%clk 0:00:15.5]} 32. hxg6
{[%clk 0:00:03.4]} 32... hxg6 {[%clk 0:00:15.5]} 33. Rh1+ {[%clk 0:00:03.8]}
33... Kg8 {[%clk 0:00:15]} 34. Rhh7 {[%clk 0:00:04.1]} 34... Rfc8 {[%clk
0:00:15.2]} 35. Reg7+ {[%clk 0:00:04.3]} 35... Kf8 {[%clk 0:00:14.6]} 36. Rf7+
{[%clk 0:00:05.2]} 36... Kg8 {[%clk 0:00:14.8]} 37. Rfg7+ {[%clk 0:00:05.4]}
37... Kf8 {[%clk 0:00:15]} 38. Rf7+ {[%clk 0:00:05.3]} 38... Kg8 {[%clk
0:00:15.2]} 39. c3 {[%clk 0:00:05.8]} 39... Rf4 {[%clk 0:00:13.8]} 40. Rfg7+
{[%clk 0:00:06]} 40... Kf8 {[%clk 0:00:13.4]} 41. Rxg6 {[%clk 0:00:06.4]} 41...
Rc6 {[%clk 0:00:08.9]} 42. Rgg7 {[%clk 0:00:06.2]} 42... Rxf3 {[%clk 0:00:08.1]}
43. Rxb7 {[%clk 0:00:06.4]} 43... Rc8 {[%clk 0:00:07.9]} 44. Rh8# {[%clk
0:00:05.9]} 1-0

[Event "*** Titled Tuesday Blitz"]
[Site "Chess.com"]
[Date "2020.05.19"]
[Round "10"]
[White "lili_ani"]
[Black "JoachimMouhamad"]
[Result "1-0"]
[WhiteElo "2550"]
[BlackElo "2319"]
[TimeControl "180+1"]
[EndTime "13:57:11 PDT"]
[Termination "lili_ani won on time"]

1. e4 {[%clk 0:03:00.9]} 1... e5 {[%clk 0:02:59.6]} 2. Nf3 {[%clk 0:03:00.5]}
2... Nc6 {[%clk 0:02:59]} 3. Bc4 {[%clk 0:02:59.9]} 3... Nf6 {[%clk 0:02:58.3]}
4. d3 {[%clk 0:02:57.3]} 4... Be7 {[%clk 0:02:57.7]} 5. O-O {[%clk 0:02:56.4]}
5... O-O {[%clk 0:02:57.4]} 6. Nc3 {[%clk 0:02:43.3]} 6... d6 {[%clk 0:02:56]}
7. a3 {[%clk 0:02:39.6]} 7... Na5 {[%clk 0:02:53.4]} 8. Ba2 {[%clk 0:02:38.7]}
8... c5 {[%clk 0:02:53.7]} 9. h3 {[%clk 0:02:36.6]} 9... Nc6 {[%clk 0:02:53.6]}
10. Ne2 {[%clk 0:02:29.8]} 10... Re8 {[%clk 0:02:51.9]} 11. Ng3 {[%clk 0:02:27]}
11... Bf8 {[%clk 0:02:46]} 12. Re1 {[%clk 0:02:26.1]} 12... Be6 {[%clk
0:02:37.1]} 13. Bxe6 {[%clk 0:02:22.5]} 13... Rxe6 {[%clk 0:02:35.9]} 14. Bd2
{[%clk 0:02:21.4]} 14... g6 {[%clk 0:02:30]} 15. b4 {[%clk 0:02:20.4]} 15... b6
{[%clk 0:02:26.3]} 16. c3 {[%clk 0:02:20.1]} 16... Bg7 {[%clk 0:02:24.2]} 17.
Bg5 {[%clk 0:02:05.3]} 17... h6 {[%clk 0:02:20.4]} 18. Bxf6 {[%clk 0:01:59.4]}
18... Qxf6 {[%clk 0:02:15.1]} 19. Nf1 {[%clk 0:01:57.2]} 19... Qd8 {[%clk
0:02:02]} 20. Ne3 {[%clk 0:01:56.8]} 20... Ne7 {[%clk 0:02:01.7]} 21. Qb3 {[%clk
0:01:52.9]} 21... Qd7 {[%clk 0:01:54.9]} 22. a4 {[%clk 0:01:25.8]} 22... Rd8
{[%clk 0:01:47.3]} 23. a5 {[%clk 0:01:24.9]} 23... d5 {[%clk 0:01:42.2]} 24.
bxc5 {[%clk 0:01:05.8]} 24... bxc5 {[%clk 0:01:34.9]} 25. c4 {[%clk 0:01:00.4]}
25... d4 {[%clk 0:01:26]} 26. Nd5 {[%clk 0:00:59.5]} 26... Nxd5 {[%clk
0:01:20.2]} 27. cxd5 {[%clk 0:00:54.1]} 27... Ree8 {[%clk 0:01:15.3]} 28. Re2
{[%clk 0:00:49.9]} 28... Rb8 {[%clk 0:01:10.2]} 29. Qc4 {[%clk 0:00:49.6]} 29...
Rec8 {[%clk 0:00:56]} 30. Rc2 {[%clk 0:00:47.3]} 30... Rb4 {[%clk 0:00:38.2]}
31. Qa6 {[%clk 0:00:45.8]} 31... Qb7 {[%clk 0:00:31.5]} 32. Qxb7 {[%clk
0:00:41.6]} 32... Rxb7 {[%clk 0:00:32.4]} 33. Nd2 {[%clk 0:00:36.4]} 33... f6
{[%clk 0:00:28.5]} 34. Rb1 {[%clk 0:00:19.6]} 34... Rxb1+ {[%clk 0:00:25.6]} 35.
Nxb1 {[%clk 0:00:20.5]} 35... Rb8 {[%clk 0:00:26.5]} 36. Nd2 {[%clk 0:00:20.6]}
36... Bf8 {[%clk 0:00:26.1]} 37. Kf1 {[%clk 0:00:20.8]} 37... Kf7 {[%clk
0:00:23.7]} 38. Ke2 {[%clk 0:00:20.5]} 38... Rb5 {[%clk 0:00:23.2]} 39. Nc4
{[%clk 0:00:20.4]} 39... Ke8 {[%clk 0:00:18.9]} 40. Rb2 {[%clk 0:00:20.2]} 40...
a6 {[%clk 0:00:16.6]} 41. Rxb5 {[%clk 0:00:19.8]} 41... axb5 {[%clk 0:00:16.4]}
42. a6 {[%clk 0:00:20.3]} 42... bxc4 {[%clk 0:00:16.3]} 43. a7 {[%clk
0:00:20.6]} 43... cxd3+ {[%clk 0:00:16.5]} 44. Kxd3 {[%clk 0:00:20.8]} 1-0

[Event "*** Titled Tuesday Blitz"]
[Site "Chess.com"]
[Date "2020.05.19"]
[Round "10"]
[White "Olga_Girya"]
[Black "BikingBrian"]
[Result "1-0"]
[WhiteElo "2405"]
[BlackElo "2236"]
[TimeControl "180+1"]
[EndTime "13:57:13 PDT"]
[Termination "Olga_Girya won by resignation"]

1. d4 {[%clk 0:02:58.6]} 1... Nf6 {[%clk 0:02:59.3]} 2. Nf3 {[%clk 0:02:58.7]}
2... g6 {[%clk 0:02:59.5]} 3. Bg5 {[%clk 0:02:58.2]} 3... Bg7 {[%clk 0:02:59.4]}
4. Nbd2 {[%clk 0:02:58.8]} 4... O-O {[%clk 0:02:57.8]} 5. c3 {[%clk 0:02:58.8]}
5... c5 {[%clk 0:02:56.8]} 6. e3 {[%clk 0:02:55.7]} 6... cxd4 {[%clk 0:02:53.1]}
7. exd4 {[%clk 0:02:54]} 7... h6 {[%clk 0:02:50.5]} 8. Bh4 {[%clk 0:02:52.1]}
8... d6 {[%clk 0:02:49.1]} 9. Bc4 {[%clk 0:02:48.6]} 9... Nh5 {[%clk 0:02:40]}
10. O-O {[%clk 0:02:48.1]} 10... Qc7 {[%clk 0:02:28.6]} 11. Re1 {[%clk
0:02:42.7]} 11... g5 {[%clk 0:02:19.9]} 12. Bg3 {[%clk 0:02:36.4]} 12... Nxg3
{[%clk 0:02:18.1]} 13. hxg3 {[%clk 0:02:35.9]} 13... e6 {[%clk 0:02:13.5]} 14.
Bb3 {[%clk 0:02:32.4]} 14... Nc6 {[%clk 0:02:11]} 15. d5 {[%clk 0:02:26]} 15...
Nd8 {[%clk 0:02:06.7]} 16. dxe6 {[%clk 0:02:24.9]} 16... Bxe6 {[%clk 0:02:06.3]}
17. Ne4 {[%clk 0:02:22.6]} 17... Bxb3 {[%clk 0:01:44.9]} 18. axb3 {[%clk
0:02:21.4]} 18... Ne6 {[%clk 0:01:39.9]} 19. Qxd6 {[%clk 0:02:19.6]} 19... Rfd8
{[%clk 0:01:29.6]} 20. Qxc7 {[%clk 0:02:17.3]} 20... Nxc7 {[%clk 0:01:30.5]} 21.
Red1 {[%clk 0:02:13.9]} 21... a6 {[%clk 0:01:26.6]} 22. Nc5 {[%clk 0:02:06.3]}
22... b5 {[%clk 0:01:12.9]} 23. b4 {[%clk 0:02:03.8]} 23... Bf8 {[%clk
0:01:06.1]} 24. Nb7 {[%clk 0:02:02.3]} 24... Rxd1+ {[%clk 0:01:02.6]} 25. Rxd1
{[%clk 0:02:03.2]} 25... Ra7 {[%clk 0:00:49.8]} 26. Na5 {[%clk 0:01:56.9]} 26...
Ne6 {[%clk 0:00:46.9]} 27. Ne5 {[%clk 0:01:55.5]} 27... Bg7 {[%clk 0:00:38.3]}
28. Nec6 {[%clk 0:01:45.4]} 28... Rc7 {[%clk 0:00:35.5]} 29. Nd8 {[%clk
0:01:44.1]} 29... Nxd8 {[%clk 0:00:26.2]} 30. Rxd8+ {[%clk 0:01:42.6]} 30... Kh7
{[%clk 0:00:26.5]} 31. Kf1 {[%clk 0:01:36.1]} 31... Ra7 {[%clk 0:00:18.7]} 32.
Nb3 {[%clk 0:01:31]} 32... Kg6 {[%clk 0:00:18]} 33. Rd6+ {[%clk 0:01:28.8]}
33... Kf5 {[%clk 0:00:14.4]} 34. Nc5 {[%clk 0:01:27.2]} 34... a5 {[%clk
0:00:13.3]} 35. bxa5 {[%clk 0:00:58.9]} 35... Rxa5 {[%clk 0:00:14.2]} 36. Ra6
{[%clk 0:00:56.3]} 36... Rxa6 {[%clk 0:00:13]} 37. Nxa6 {[%clk 0:00:57.2]} 37...
Ke4 {[%clk 0:00:12.8]} 38. Ke2 {[%clk 0:00:56]} 38... f5 {[%clk 0:00:12]} 39.
Nc7 {[%clk 0:00:53.6]} 39... f4 {[%clk 0:00:10.3]} 40. gxf4 {[%clk 0:00:46.6]}
40... Kxf4 {[%clk 0:00:11.2]} 41. Nxb5 {[%clk 0:00:46.6]} 41... h5 {[%clk
0:00:09.6]} 42. Nd4 {[%clk 0:00:44.4]} 42... Be5 {[%clk 0:00:07.2]} 43. b4
{[%clk 0:00:41.6]} 43... h4 {[%clk 0:00:06.8]} 44. f3 {[%clk 0:00:39.4]} 44...
g4 {[%clk 0:00:04.9]} 45. fxg4 {[%clk 0:00:37.7]} 45... Kxg4 {[%clk 0:00:05.8]}
46. b5 {[%clk 0:00:37.4]} 46... Kg3 {[%clk 0:00:05.8]} 47. Kf1 {[%clk
0:00:35.8]} 47... h3 {[%clk 0:00:04.8]} 48. gxh3 {[%clk 0:00:35.5]} 48... Kxh3
{[%clk 0:00:05.7]} 49. Ke2 {[%clk 0:00:32.2]} 49... Kg4 {[%clk 0:00:05.4]} 50.
Kd3 {[%clk 0:00:31.1]} 50... Kf4 {[%clk 0:00:05.3]} 51. c4 {[%clk 0:00:30.5]}
51... Bd6 {[%clk 0:00:03.4]} 52. c5 {[%clk 0:00:29.2]} 52... Bxc5 {[%clk
0:00:02.9]} 53. Ne6+ {[%clk 0:00:29.2]} 1-0

[Event "*** Titled Tuesday Blitz"]
[Site "Chess.com"]
[Date "2020.05.19"]
[Round "10"]
[White "2nd_life"]
[Black "GMKrikor"]
[Result "1-0"]
[WhiteElo "2489"]
[BlackElo "2745"]
[TimeControl "180+1"]
[EndTime "13:57:14 PDT"]
[Termination "2nd_life won by checkmate"]

1. e4 {[%clk 0:03:00.9]} 1... c5 {[%clk 0:02:59.6]} 2. Nf3 {[%clk 0:03:00.3]}
2... e6 {[%clk 0:02:58.9]} 3. c3 {[%clk 0:03:00]} 3... d5 {[%clk 0:02:56.1]} 4.
exd5 {[%clk 0:03:00.3]} 4... Qxd5 {[%clk 0:02:57]} 5. d4 {[%clk 0:03:00.6]} 5...
Nf6 {[%clk 0:02:54.4]} 6. Be3 {[%clk 0:03:00.5]} 6... Nc6 {[%clk 0:02:40.7]} 7.
Bd3 {[%clk 0:02:46.7]} 7... Be7 {[%clk 0:02:20.1]} 8. O-O {[%clk 0:02:43.3]}
8... O-O {[%clk 0:02:11.6]} 9. h3 {[%clk 0:02:11.7]} 9... Rd8 {[%clk 0:02:07.8]}
10. Qe2 {[%clk 0:02:02.2]} 10... b6 {[%clk 0:01:50.5]} 11. a3 {[%clk 0:01:52.8]}
11... Bb7 {[%clk 0:01:45.6]} 12. b4 {[%clk 0:01:47.7]} 12... cxd4 {[%clk
0:01:15.1]} 13. cxd4 {[%clk 0:01:47.4]} 13... Rac8 {[%clk 0:01:14.9]} 14. Nbd2
{[%clk 0:01:42.2]} 14... Qh5 {[%clk 0:01:03.5]} 15. Rfc1 {[%clk 0:01:33.9]}
15... Nd5 {[%clk 0:01:00.5]} 16. Ne4 {[%clk 0:01:16.3]} 16... Nxe3 {[%clk
0:00:52.8]} 17. fxe3 {[%clk 0:01:16.3]} 17... Nb8 {[%clk 0:00:42.9]} 18. Ng3
{[%clk 0:00:39]} 18... Qh6 {[%clk 0:00:30.2]} 19. Be4 {[%clk 0:00:32.3]} 19...
Bxe4 {[%clk 0:00:16.6]} 20. Nxe4 {[%clk 0:00:31.6]} 20... Nd7 {[%clk 0:00:11.5]}
21. Nf2 {[%clk 0:00:25.6]} 21... Nf6 {[%clk 0:00:09.7]} 22. Ne5 {[%clk 0:00:23]}
22... Re8 {[%clk 0:00:05.1]} 23. Nfg4 {[%clk 0:00:20.7]} 23... Nxg4 {[%clk
0:00:04.9]} 24. Nxg4 {[%clk 0:00:21.6]} 24... Qg5 {[%clk 0:00:05.2]} 25. Ne5
{[%clk 0:00:18.3]} 25... Bd6 {[%clk 0:00:04.2]} 26. Nf3 {[%clk 0:00:15.7]} 26...
Qg3 {[%clk 0:00:03.4]} 27. Qa6 {[%clk 0:00:12.7]} 27... g5 {[%clk 0:00:02.6]}
28. Rxc8 {[%clk 0:00:11.7]} 28... Rxc8 {[%clk 0:00:01.9]} 29. Qxc8+ {[%clk
0:00:11.7]} 29... Kg7 {[%clk 0:00:02.8]} 30. Qc3 {[%clk 0:00:10.8]} 30... h5
{[%clk 0:00:02.6]} 31. Qe1 {[%clk 0:00:10.2]} 31... g4 {[%clk 0:00:03.2]} 32.
Qxg3 {[%clk 0:00:09.8]} 32... Bxg3 {[%clk 0:00:03.2]} 33. hxg4 {[%clk
0:00:10.3]} 33... hxg4 {[%clk 0:00:04.1]} 34. Ne5 {[%clk 0:00:10.7]} 34... f5
{[%clk 0:00:04.7]} 35. Nd3 {[%clk 0:00:10.3]} 35... Kf6 {[%clk 0:00:04.8]} 36.
Kf1 {[%clk 0:00:10.7]} 36... Bh2 {[%clk 0:00:04.5]} 37. Ke2 {[%clk 0:00:11.1]}
37... Kg5 {[%clk 0:00:04.1]} 38. Rh1 {[%clk 0:00:10.6]} 38... g3 {[%clk
0:00:04.6]} 39. Ne1 {[%clk 0:00:09.8]} 39... Kg4 {[%clk 0:00:05]} 40. Nf3 {[%clk
0:00:10.2]} 40... f4 {[%clk 0:00:04.4]} 41. Nxh2+ {[%clk 0:00:10.2]} 41... Kf5
{[%clk 0:00:05]} 42. Nf3 {[%clk 0:00:10.2]} 42... Ke4 {[%clk 0:00:05.9]} 43. Rh5
{[%clk 0:00:08.9]} 43... e5 {[%clk 0:00:04.8]} 44. Rxe5# {[%clk 0:00:08.7]} 1-0

[Event "*** Titled Tuesday Blitz"]
[Site "Chess.com"]
[Date "2020.05.19"]
[Round "10"]
[White "powermove"]
[Black "CzechmVIII"]
[Result "1-0"]
[WhiteElo "1730"]
[BlackElo "2174"]
[TimeControl "180+1"]
[EndTime "13:57:14 PDT"]
[Termination "powermove won on time"]

1. Nf3 {[%clk 0:03:00.9]} 1... c5 {[%clk 0:02:59.9]} 2. g3 {[%clk 0:03:00.5]}
2... b6 {[%clk 0:03:00.1]} 3. Bg2 {[%clk 0:02:59.4]} 3... Bb7 {[%clk 0:03:00.7]}
4. O-O {[%clk 0:02:58.9]} 4... Nf6 {[%clk 0:03:01]} 5. d3 {[%clk 0:02:59.1]}
5... e6 {[%clk 0:03:01.2]} 6. e4 {[%clk 0:02:58.2]} 6... d6 {[%clk 0:03:01.4]}
7. Nbd2 {[%clk 0:02:57.3]} 7... Be7 {[%clk 0:03:01.6]} 8. Re1 {[%clk 0:02:55.3]}
8... O-O {[%clk 0:03:01.6]} 9. c3 {[%clk 0:02:54]} 9... Nbd7 {[%clk 0:03:01.1]}
10. Qe2 {[%clk 0:02:53.4]} 10... Qc7 {[%clk 0:02:53.7]} 11. a4 {[%clk
0:02:50.5]} 11... a6 {[%clk 0:02:52.9]} 12. h4 {[%clk 0:02:46.6]} 12... Rfe8
{[%clk 0:02:35.4]} 13. d4 {[%clk 0:02:42.1]} 13... cxd4 {[%clk 0:02:31.8]} 14.
cxd4 {[%clk 0:02:41.9]} 14... Qc2 {[%clk 0:02:20.2]} 15. e5 {[%clk 0:02:21.4]}
15... Nd5 {[%clk 0:02:12.6]} 16. Nc4 {[%clk 0:02:14.1]} 16... Qxe2 {[%clk
0:02:04.7]} 17. Rxe2 {[%clk 0:02:12.4]} 17... b5 {[%clk 0:01:43.9]} 18. Nxd6
{[%clk 0:02:03.1]} 18... Bxd6 {[%clk 0:01:42.8]} 19. exd6 {[%clk 0:02:03.2]}
19... Rec8 {[%clk 0:01:19.5]} 20. Ne5 {[%clk 0:01:46.1]} 20... Rd8 {[%clk
0:00:58]} 21. Bd2 {[%clk 0:01:13.7]} 21... N7f6 {[%clk 0:00:51.9]} 22. d7 {[%clk
0:01:11.3]} 22... b4 {[%clk 0:00:41.3]} 23. Bxb4 {[%clk 0:01:00.2]} 23... Nxd7
{[%clk 0:00:21.9]} 24. Ba5 {[%clk 0:00:58.1]} 24... Nxe5 {[%clk 0:00:22.1]} 25.
Bxd8 {[%clk 0:00:56.5]} 25... Nc4 {[%clk 0:00:21.3]} 26. Bg5 {[%clk 0:00:53.6]}
26... h6 {[%clk 0:00:19.1]} 27. Bc1 {[%clk 0:00:51.4]} 27... Rc8 {[%clk
0:00:17.7]} 28. b3 {[%clk 0:00:51.4]} 28... Nd6 {[%clk 0:00:17.5]} 29. Ba3
{[%clk 0:00:49.8]} 29... Nf5 {[%clk 0:00:17.7]} 30. Rc1 {[%clk 0:00:43.9]} 30...
Rxc1+ {[%clk 0:00:13.4]} 31. Bxc1 {[%clk 0:00:43.7]} 31... Nxd4 {[%clk
0:00:14.2]} 32. Rb2 {[%clk 0:00:38.7]} 32... Nc3 {[%clk 0:00:14.4]} 33. Be3
{[%clk 0:00:37.8]} 33... Nde2+ {[%clk 0:00:13]} 34. Kh2 {[%clk 0:00:37.1]} 34...
Bxg2 {[%clk 0:00:12.9]} 35. Kxg2 {[%clk 0:00:37]} 35... f5 {[%clk 0:00:12]} 36.
Rc2 {[%clk 0:00:36.2]} 36... e5 {[%clk 0:00:09.8]} 37. Bd2 {[%clk 0:00:34]}
37... Ne4 {[%clk 0:00:08.8]} 38. Be3 {[%clk 0:00:32.6]} 38... Nd4 {[%clk
0:00:07.8]} 39. Bxd4 {[%clk 0:00:32]} 39... exd4 {[%clk 0:00:08.7]} 40. f3
{[%clk 0:00:32.1]} 40... d3 {[%clk 0:00:08.8]} 41. Rc1 {[%clk 0:00:31.6]} 41...
Nf6 {[%clk 0:00:03.6]} 42. Rd1 {[%clk 0:00:31.6]} 42... Nd5 {[%clk 0:00:03.2]}
43. Rxd3 {[%clk 0:00:31.7]} 43... Nb4 {[%clk 0:00:03.9]} 44. Rd4 {[%clk
0:00:31.3]} 44... Nc2 {[%clk 0:00:04]} 45. Rd8+ {[%clk 0:00:29.8]} 45... Kf7
{[%clk 0:00:03.6]} 46. Ra8 {[%clk 0:00:29.3]} 46... Nb4 {[%clk 0:00:02.1]} 47.
Ra7+ {[%clk 0:00:28.5]} 47... Kf6 {[%clk 0:00:02.2]} 48. Rb7 {[%clk 0:00:28.7]}
48... a5 {[%clk 0:00:01.3]} 49. Rb6+ {[%clk 0:00:27.8]} 1-0

[Event "*** Titled Tuesday Blitz"]
[Site "Chess.com"]
[Date "2020.05.19"]
[Round "10"]
[White "rasmussvane"]
[Black "Paul66666"]
[Result "1-0"]
[WhiteElo "2872"]
[BlackElo "2612"]
[TimeControl "180+1"]
[EndTime "13:57:15 PDT"]
[Termination "rasmussvane won on time"]

1. Nf3 {[%clk 0:03:00.9]} 1... Nf6 {[%clk 0:02:57.6]} 2. g3 {[%clk 0:03:01]}
2... g6 {[%clk 0:02:55.2]} 3. Bg2 {[%clk 0:03:01.3]} 3... Bg7 {[%clk 0:02:56.1]}
4. O-O {[%clk 0:03:01.9]} 4... O-O {[%clk 0:02:55.8]} 5. d4 {[%clk 0:03:02.4]}
5... d6 {[%clk 0:02:54.6]} 6. Re1 {[%clk 0:03:02.3]} 6... c6 {[%clk 0:02:55.5]}
7. e4 {[%clk 0:03:02.4]} 7... Qc7 {[%clk 0:02:50.9]} 8. Nc3 {[%clk 0:03:02.8]}
8... e5 {[%clk 0:02:49.6]} 9. a4 {[%clk 0:03:03.3]} 9... Re8 {[%clk 0:02:47.8]}
10. h3 {[%clk 0:03:03.2]} 10... a5 {[%clk 0:02:46.5]} 11. Be3 {[%clk 0:03:02.8]}
11... Na6 {[%clk 0:02:45.3]} 12. Qd2 {[%clk 0:02:50.2]} 12... Be6 {[%clk
0:02:37.6]} 13. Rad1 {[%clk 0:02:47.1]} 13... Rad8 {[%clk 0:02:35.8]} 14. Bg5
{[%clk 0:02:22.5]} 14... Bc8 {[%clk 0:02:27.7]} 15. g4 {[%clk 0:02:10.8]} 15...
Nb4 {[%clk 0:02:25.5]} 16. Bf1 {[%clk 0:01:50.9]} 16... b6 {[%clk 0:01:46.9]}
17. d5 {[%clk 0:01:42.4]} 17... cxd5 {[%clk 0:01:40]} 18. exd5 {[%clk
0:01:39.4]} 18... Bd7 {[%clk 0:01:33]} 19. Rc1 {[%clk 0:01:31.5]} 19... Rc8
{[%clk 0:01:31.8]} 20. Red1 {[%clk 0:01:10.5]} 20... Qb7 {[%clk 0:01:25.2]} 21.
Nh2 {[%clk 0:01:01.5]} 21... e4 {[%clk 0:00:52.6]} 22. Be2 {[%clk 0:00:53.3]}
22... h5 {[%clk 0:00:49.3]} 23. gxh5 {[%clk 0:00:49]} 23... Nxh5 {[%clk
0:00:48.5]} 24. Qe3 {[%clk 0:00:25.6]} 24... Bxc3 {[%clk 0:00:33.6]} 25. bxc3
{[%clk 0:00:23.4]} 25... Nxd5 {[%clk 0:00:34]} 26. Qd2 {[%clk 0:00:12.8]} 26...
Nxc3 {[%clk 0:00:32.3]} 27. Bxh5 {[%clk 0:00:12.9]} 27... e3 {[%clk 0:00:20.4]}
28. Bxe3 {[%clk 0:00:11.4]} 28... gxh5 {[%clk 0:00:18.2]} 29. Re1 {[%clk
0:00:11.5]} 29... Kh7 {[%clk 0:00:15.6]} 30. Bg5 {[%clk 0:00:10.8]} 30... Rg8
{[%clk 0:00:12.5]} 31. Re7 {[%clk 0:00:11]} 31... Rcf8 {[%clk 0:00:08.6]} 32.
Rce1 {[%clk 0:00:06.1]} 32... Rg6 {[%clk 0:00:03.9]} 33. h4 {[%clk 0:00:06.2]}
33... Nd5 {[%clk 0:00:02.2]} 34. Rxd7 {[%clk 0:00:05]} 34... Qxd7 {[%clk
0:00:01.3]} 35. Qxd5 {[%clk 0:00:05.5]} 35... Qh3 {[%clk 0:00:01.9]} 36. Nf3
{[%clk 0:00:02.7]} 36... Qg4+ {[%clk 0:00:01.3]} 37. Kf1 {[%clk 0:00:02.6]}
37... Qh3+ {[%clk 0:00:01.5]} 38. Ke2 {[%clk 0:00:03.1]} 38... Re8+ {[%clk
0:00:01.2]} 39. Kd2 {[%clk 0:00:03.6]} 39... Rge6 {[%clk 0:00:01.3]} 40. Qd3+
{[%clk 0:00:03.1]} 1-0

[Event "*** Titled Tuesday Blitz"]
[Site "Chess.com"]
[Date "2020.05.19"]
[Round "10"]
[White "Oleksandr_Bortnyk"]
[Black "Man-Chuk"]
[Result "1-0"]
[WhiteElo "2981"]
[BlackElo "2748"]
[TimeControl "180+1"]
[EndTime "13:57:16 PDT"]
[Termination "Oleksandr_Bortnyk won on time"]

1. e4 {[%clk 0:03:00.9]} 1... e5 {[%clk 0:02:54.7]} 2. Bc4 {[%clk 0:03:00.4]}
2... Nf6 {[%clk 0:02:43.4]} 3. d3 {[%clk 0:03:00.4]} 3... c6 {[%clk 0:02:43.4]}
4. Nf3 {[%clk 0:03:00.8]} 4... d5 {[%clk 0:02:43.5]} 5. Bb3 {[%clk 0:03:01.3]}
5... a5 {[%clk 0:02:42.4]} 6. a3 {[%clk 0:03:00.9]} 6... a4 {[%clk 0:02:39.4]}
7. Ba2 {[%clk 0:03:01]} 7... Bd6 {[%clk 0:02:35.8]} 8. Nc3 {[%clk 0:03:00.6]}
8... Be6 {[%clk 0:02:32.6]} 9. Ng5 {[%clk 0:02:44.5]} 9... Bg4 {[%clk 0:02:27]}
10. f3 {[%clk 0:02:31.7]} 10... Bh5 {[%clk 0:02:27]} 11. Qe2 {[%clk 0:02:06.2]}
11... h6 {[%clk 0:02:17.3]} 12. Nh3 {[%clk 0:02:06.2]} 12... Nbd7 {[%clk
0:02:03.7]} 13. O-O {[%clk 0:01:44.4]} 13... Nb6 {[%clk 0:01:37.4]} 14. Kh1
{[%clk 0:01:25.1]} 14... O-O {[%clk 0:01:34.9]} 15. Qf2 {[%clk 0:01:21.8]} 15...
Bg6 {[%clk 0:01:27.7]} 16. Ne2 {[%clk 0:01:14.1]} 16... Nfd7 {[%clk 0:01:12.4]}
17. g4 {[%clk 0:00:32.6]} 17... Nc5 {[%clk 0:01:05.3]} 18. Be3 {[%clk
0:00:24.6]} 18... Nbd7 {[%clk 0:01:03.3]} 19. exd5 {[%clk 0:00:17.3]} 19... Kh8
{[%clk 0:01:02.4]} 20. dxc6 {[%clk 0:00:17.1]} 20... bxc6 {[%clk 0:01:02.3]} 21.
f4 {[%clk 0:00:15.2]} 21... f5 {[%clk 0:00:54.5]} 22. g5 {[%clk 0:00:15.1]}
22... e4 {[%clk 0:00:28.2]} 23. gxh6 {[%clk 0:00:13]} 23... exd3 {[%clk
0:00:18.7]} 24. hxg7+ {[%clk 0:00:11.2]} 24... Kxg7 {[%clk 0:00:19.6]} 25. Bd4+
{[%clk 0:00:09.8]} 25... Nf6 {[%clk 0:00:17.7]} 26. Ng3 {[%clk 0:00:09]} 26...
Ne4 {[%clk 0:00:12.3]} 27. Nxe4 {[%clk 0:00:08.6]} 27... fxe4 {[%clk 0:00:13.2]}
28. Rg1 {[%clk 0:00:08.7]} 28... Rh8 {[%clk 0:00:12.7]} 29. Ng5 {[%clk
0:00:04.8]} 29... Qd7 {[%clk 0:00:09]} 30. Ne6+ {[%clk 0:00:04.9]} 30... Kh7
{[%clk 0:00:02.1]} 31. Bxf6 {[%clk 0:00:03.4]} 31... Bh5 {[%clk 0:00:01.5]} 32.
Rg7+ {[%clk 0:00:03.1]} 32... Qxg7 {[%clk 0:00:01]} 33. Bxg7 {[%clk 0:00:03.2]}
33... Bf3+ {[%clk 0:00:01.9]} 34. Kg1 {[%clk 0:00:03.8]} 34... Rhg8 {[%clk
0:00:02.1]} 35. Qd4 {[%clk 0:00:04.2]} 35... Bc5 {[%clk 0:00:01.6]} 36. Qxc5
{[%clk 0:00:04.3]} 36... Rae8 {[%clk 0:00:02.1]} 37. Ng5+ {[%clk 0:00:04.5]}
37... Kxg7 {[%clk 0:00:02.1]} 38. Bxg8 {[%clk 0:00:05.2]} 38... Rxg8 {[%clk
0:00:02]} 39. Nxf3 {[%clk 0:00:05.4]} 1-0